bitfinex-derivatives/quotes_SOLF0:USTF0_20250505
["timestamp","ask_amount","ask_price","bid_price","bid_amount"]
[1746444727033,6.953,143.82,143.79,7.954]
[1746444729636,32.10335625,143.84,143.79,1.0]
[1746444730234,6.9537,143.8,143.79,1.0]
[1746444732336,31.4537,143.8,143.79,1.0]
[1746444736341,24.5,143.8,143.79,1.0]
[1746444736633,24.5,143.83,143.79,1.0]
[1746444737136,31.4525,143.83,143.8,6.9534]
[1746444737636,24.5,143.83,143.8,6.9534]
[1746444737935,24.5,143.83,143.79,1.0]
[1746444739237,31.4525,143.83,143.8,6.9536]
[1746444739740,24.5,143.83,143.81,6.953]
[1746444739936,24.5,143.83,143.79,1.0]
[1746444740137,24.5,143.86,143.8,2.1305]
[1746444740730,6.9521,143.84,143.81,6.953]
[1746444741537,24.5,143.86,143.8,2.1305]
[1746444741932,24.5,143.89,143.8,2.1305]
[1746444742127,6.9501,143.88,143.8,2.1305]
[1746444742533,24.5,143.89,143.86,6.9508]
[1746444742734,7.60335625,143.91,143.82,24.5]
[1746444742929,24.5,143.92,143.83,4.202]
[1746444743238,31.4482,143.92,143.83,4.202]
[1746444743439,24.5,143.92,143.83,4.202]
[1746444743639,6.9475,143.93,143.89,6.9489]
[1746444745137,6.9479,143.92,143.89,6.9489]
[1746444746636,6.9484,143.91,143.87,24.5]
[1746444746936,36.66953609,143.95,143.87,24.5]
[1746444747236,6.949,143.9,143.87,31.4501]
[1746444747438,6.949,143.9,143.87,24.5]
[1746444747937,6.949,143.9,143.87,31.4502]
[1746444748130,24.5,143.91,143.83,28.702]
[1746444748637,24.5,143.91,143.85,6.951]
[1746444749238,6.9496,143.89,143.85,6.951]
[1746444749437,6.9496,143.89,143.86,6.9507]
[1746444749837,24.5,143.91,143.83,28.702]
[1746444749838,6.9499,143.88,143.83,28.702]
[1746444750236,6.9499,143.88,143.85,6.9509]
[1746444750540,6.9496,143.89,143.85,6.9509]
[1746444750735,6.9496,143.89,143.83,28.702]
[1746444751040,6.9498,143.89,143.85,6.9509]
[1746444751441,6.9498,143.89,143.86,6.9505]
[1746444751638,6.9498,143.89,143.83,28.702]
[1746444752239,6.9498,143.89,143.85,6.9509]
[1746444752445,6.9489,143.9,143.83,28.702]
[1746444752636,12.16953609,143.95,143.83,28.702]
[1746444752843,24.5,143.94,143.83,28.702]
[1746444753043,6.9482,143.92,143.83,28.702]
[1746444753442,6.9482,143.92,143.89,6.9493]
[1746444754443,6.9477,143.93,143.83,28.702]
[1746444754849,24.5,143.94,143.84,13.9033]
[1746444755142,6.9466,143.95,143.92,6.9478]
[1746444755651,6.9462,143.96,143.93,6.9474]
[1746444755942,24.5,143.97,143.9,1.9934]
[1746444756345,6.9477,143.93,143.9,6.9486]
[1746444756939,6.948,143.92,143.89,31.4491]
[1746444757141,24.5,143.97,143.86,26.6734]
[1746444757340,6.948,143.92,143.89,6.949]
[1746444757844,6.948,143.92,143.9,6.9488]
[1746444758142,24.5,143.97,143.86,26.6734]
[1746444758642,6.9465,143.95,143.92,6.9475]
[1746444759445,6.9462,143.96,143.93,6.9474]
[1746444759839,24.5,143.97,143.91,4.1441]
[1746444760140,24.68,144.0,143.91,6.1969]
[1746444760447,31.6244,144.0,143.97,6.9454]
[1746444760846,24.68,144.03,143.94,24.68]
[1746444761043,6.9433,144.02,143.94,24.68]
[1746444761442,31.6229,144.03,143.99,6.9441]
[1746444761635,24.68,144.03,143.94,24.68]
[1746444761840,24.66,144.06,143.94,24.68]
[1746444762345,6.9424,144.04,143.94,36.84953609]
[1746444762643,24.66,144.06,143.94,36.84953609]
[1746444762843,6.9425,144.04,144.0,6.9437]
[1746444763246,6.9425,144.04,144.01,6.9435]
[1746444763849,24.66,144.06,144.02,6.9427]
[1746444764235,6.9419,144.05,144.0,6.0982]
[1746444764439,6.9419,144.05,144.01,6.9432]
[1746444764744,6.9419,144.05,144.0,6.0982]
[1746444764946,6.9419,144.05,144.02,6.9428]
[1746444766447,6.9419,144.05,144.01,6.9433]
[1746444766747,6.9422,144.04,144.01,6.9433]
[1746444767945,24.66,144.09,144.02,6.943]
[1746444768143,24.66,144.09,144.0,6.0982]
[1746444768343,24.66,144.09,144.02,6.9428]
[1746444768951,6.9411,144.07,144.03,6.9425]
[1746444769250,24.66,144.09,144.03,6.9425]
[1746444770248,6.9412,144.06,144.03,6.9425]
[1746444770845,6.9409,144.07,144.03,6.9425]
[1746444771054,6.9409,144.07,144.04,6.9421]
[1746444771341,24.66,144.09,144.03,24.66]
[1746444771550,24.66,144.09,144.06,6.9411]
[1746444771851,24.66,144.09,144.03,24.66]
[1746444771852,0.40125,144.1,144.03,24.66]
[1746444772149,7.34075,144.1,144.03,24.66]
[1746444773050,7.34075,144.1,144.07,6.9406]
[1746444773348,0.40125,144.1,144.03,24.66]
[1746444773544,24.66,144.09,144.03,31.6022]
[1746444773748,6.9414,144.06,144.03,31.6022]
[1746444773945,6.9414,144.06,144.0,30.7582]
[1746444774952,6.9414,144.06,144.03,6.9423]
[1746444775252,6.9409,144.07,144.02,1.0]
[1746444775445,6.9409,144.07,144.04,6.9421]
[1746444775750,6.9409,144.07,144.02,1.0]
[1746444776252,6.9412,144.06,144.03,6.9424]
[1746444776951,24.66,144.09,144.02,7.9427]
[1746444777150,24.66,144.09,144.02,1.0]
[1746444777351,6.9407,144.07,144.02,1.0]
[1746444777856,6.9407,144.07,144.04,6.9418]
[1746444779854,6.9412,144.06,144.03,6.9424]
[1746444780354,6.9412,144.06,144.02,7.9428]
[1746444780653,6.9412,144.06,144.02,1.0]
[1746444780849,36.82953609,144.09,144.02,1.0]
[1746444781055,12.16953609,144.06,144.02,1.0]
[1746444781254,24.64,144.05,143.94,26.626]
[1746444782555,6.9424,144.04,144.01,6.9432]
[1746444782753,24.64,144.05,143.98,24.64]
[1746444783056,28.6959,144.08,143.99,2.0345]
[1746444783256,24.64,144.08,143.99,4.0229]
[1746444783456,31.5804,144.08,144.0,1.9914]
[1746444784153,24.64,144.08,144.0,1.9914]
[1746444784558,24.64,144.11,144.0,1.9914]
[1746444784953,24.64,144.11,144.07,6.9405]
[1746444785253,31.5788,144.11,144.04,24.64]
[1746444785651,6.9392,144.1,144.07,6.9405]
[1746444786058,24.64,144.11,144.07,6.9405]
[1746444786251,24.64,144.11,144.06,6.941]
[1746444786252,6.9395,144.1,144.06,6.941]
[1746444786452,24.64,144.11,144.04,24.64]
[1746444786757,24.64,144.11,144.06,6.9411]
[1746444786758,6.9393,144.1,144.06,6.9411]
[1746444786960,6.9393,144.1,144.04,24.64]
[1746444787257,31.579,144.11,144.04,24.64]
[1746444787452,24.64,144.11,144.04,24.64]
[1746444788358,31.579,144.11,144.04,24.64]
[1746444788957,31.579,144.11,144.08,6.9402]
[1746444789159,24.64,144.11,144.04,24.64]
[1746444789457,24.64,144.11,144.08,6.9399]
[1746444789658,6.9385,144.12,144.08,6.9399]
[1746444789858,6.9381,144.13,144.04,24.64]
[1746444790059,6.9381,144.13,144.05,2.1373]
[1746444790260,6.9381,144.13,144.1,6.939]
[1746444791256,6.9381,144.13,144.06,2.115]
[1746444791257,25.14758,144.14,144.11,6.9387]
[1746444792255,24.84,144.14,144.11,6.9387]
[1746444792457,24.84,144.17,144.08,24.84]
[1746444793763,6.9376,144.14,144.11,6.9385]
[1746444793958,24.84,144.17,144.11,6.9385]
[1746444794863,6.9372,144.15,144.12,6.9382]
[1746444795259,24.84,144.17,144.08,24.84]
[1746444795662,6.9374,144.14,144.11,6.9384]
[1746444796260,6.9374,144.14,144.12,6.9382]
[1746444796961,6.937,144.15,144.13,6.9377]
[1746444797160,24.84,144.17,144.08,24.84]
[1746444797564,6.9375,144.14,144.11,6.9384]
[1746444797764,6.9375,144.14,144.08,24.84]
[1746444799363,6.937,144.15,144.08,24.84]
[1746444799966,6.937,144.15,144.12,6.9382]
[1746444800467,6.9364,144.16,144.13,6.9376]
[1746444800660,24.84,144.17,144.08,24.84]
[1746444801066,31.7761,144.17,144.14,6.9372]
[1746444801268,24.84,144.17,144.14,6.9372]
[1746444801467,3.9757,144.19,144.14,6.9372]
[1746444801665,6.936,144.17,144.14,6.9372]
[1746444801871,3.9757,144.19,144.13,6.9375]
[1746444802266,6.9363,144.17,144.13,6.9375]
[1746444802467,3.9757,144.19,144.13,6.9375]
[1746444803167,6.9364,144.16,144.13,6.9375]
[1746444805266,6.9364,144.16,144.14,6.9372]
[1746444805569,6.9359,144.17,144.12,24.84]
[1746444806668,6.9359,144.17,144.14,6.9371]
[1746444806868,3.9757,144.19,144.12,24.84]
[1746444807168,3.9757,144.19,144.13,6.9375]
[1746444807370,6.9375,144.14,144.12,24.84]
[1746444807572,6.9375,144.14,144.09,24.84]
[1746444808165,6.9375,144.14,144.11,6.9383]
[1746444808970,6.9383,144.12,144.1,6.9391]
[1746444809173,24.84,144.16,144.1,6.9391]
[1746444809367,24.84,144.16,144.09,24.84]
[1746444809563,6.938,144.13,144.11,6.9387]
[1746444810271,6.9383,144.12,144.1,6.939]
[1746444810471,24.84,144.16,144.09,24.84]
[1746444810667,36.96890249,144.16,144.07,6.9404]
[1746444810872,36.96890249,144.16,144.06,26.955]
[1746444811271,6.9391,144.11,144.06,26.955]
[1746444811569,36.96890249,144.16,144.06,26.955]
[1746444811770,24.84,144.16,144.06,26.955]
[1746444811961,6.9385,144.12,144.06,26.955]
[1746444812571,6.9385,144.12,144.09,6.9393]
[1746444812772,6.9385,144.12,144.06,26.955]
[1746444813072,6.9385,144.12,144.09,6.9394]
[1746444813573,6.9388,144.11,144.09,6.9394]
[1746444813771,6.9388,144.11,144.01,2.0269]
[1746444813772,24.84,144.12,144.03,24.84]
[1746444813971,13.873,144.16,144.03,24.84]
[1746444813972,24.84,144.11,144.03,24.84]
[1746444814175,36.96890249,144.1,144.0,24.84]
[1746444814474,12.12890249,144.07,143.97,4.1078]
[1746444814674,12.12890249,144.07,143.97,2.1102]
[1746444814873,6.9433,144.02,143.97,2.1102]
[1746444815075,24.84,144.04,143.97,2.1102]
[1746444816472,6.9428,144.03,143.99,6.9445]
[1746444816977,6.9428,144.03,143.97,2.1102]
[1746444817278,24.84,144.04,143.97,2.1102]
[1746444817676,24.84,144.04,143.98,25.02]
[1746444817881,25.02,144.07,143.98,25.02]
[1746444818077,25.02,144.07,143.99,2.0837]
[1746444818674,25.02,144.1,143.99,2.0837]
[1746444818978,25.02,144.1,144.0,12.12890249]
[1746444819374,25.02,144.1,144.01,2.0865]
[1746444819581,25.02,144.1,144.07,6.9403]
[1746444822492,25.02,144.1,144.03,1.9605]
[1746444823087,37.14890249,144.1,144.02,6.9429]
[1746444823288,4.0674,144.09,144.02,6.9429]
[1746444823487,4.0674,144.09,143.99,27.1037]
[1746444823693,4.0674,144.09,144.04,6.942]
[1746444824289,6.9407,144.07,144.04,6.942]
[1746444824888,6.9404,144.08,144.04,6.942]
[1746444825190,4.0674,144.09,144.04,6.942]
[1746444825692,6.9404,144.08,144.04,6.942]
[1746444826490,6.9408,144.07,144.04,6.942]
[1746444827292,6.9412,144.06,144.04,6.942]
[1746444827486,4.0674,144.09,143.99,27.1037]
[1746444827687,25.02,144.08,143.98,2.1289]
[1746444827886,6.9424,144.04,143.98,2.1289]
[1746444828087,31.9624,144.04,144.01,6.9432]
[1746444828792,31.9624,144.04,144.0,6.9438]
[1746444828793,6.9427,144.03,144.0,6.9438]
[1746444828988,25.02,144.04,143.95,4.1717]
[1746444830092,25.04,144.07,143.96,12.12890249]
[1746444830694,25.04,144.07,144.05,6.9416]
[1746444830896,25.04,144.07,144.01,25.04]
[1746444831092,25.04,144.07,144.0,25.04]
[1746444831492,25.04,144.07,143.97,25.04]
[1746444831693,37.16890249,144.07,143.96,25.04]
[1746444832093,37.16890249,144.07,143.99,6.9443]
[1746444832094,6.9429,144.03,143.99,6.9443]
[1746444832296,37.16890249,144.07,143.96,25.04]
[1746444832695,6.9425,144.04,144.0,6.9436]
[1746444833098,37.16890249,144.07,144.0,6.9436]
[1746444833592,37.16890249,144.07,144.01,6.9436]
[1746444834296,6.9425,144.04,144.01,6.9436]
[1746444837100,25.04,144.07,143.96,25.04]
[1746444837397,25.04,144.07,144.01,1.0]
[1746444837598,25.04,144.07,144.02,6.9428]
[1746444837798,25.04,144.07,144.01,1.0]
[1746444838800,37.16890249,144.07,144.01,1.0]
[1746444839295,6.9443,144.0,143.95,4.1717]
[1746444839690,25.04,144.02,143.95,2.043]
[1746444839898,6.9442,144.0,143.94,2.144]
[1746444840198,6.9442,144.0,143.98,6.9447]
[1746444840498,25.04,144.02,143.94,2.144]
[1746444840698,25.04,144.02,143.95,4.2387]
[1746444840892,31.9832,144.02,144.0,6.9438]
[1746444841098,25.04,144.02,143.95,4.2387]
[1746444841491,25.04,144.02,143.97,6.9454]
[1746444841690,25.04,144.02,143.95,2.1692]
[1746444841998,25.04,144.02,143.97,6.9453]
[1746444842597,25.04,144.02,143.94,2.144]
[1746444843000,25.04,144.02,143.95,6.9465]
[1746444843699,25.04,144.02,143.94,9.0907]
[1746444843899,25.04,144.02,143.94,6.9467]
[1746444844502,2.1459,144.01,143.94,6.9467]
[1746444845502,6.9461,143.96,143.94,6.9467]
[1746444845904,25.04,143.98,143.92,121.5732126]
[1746444846198,6.9469,143.95,143.92,121.5732126]
[1746444846406,25.04,143.98,143.92,128.5209126]
[1746444846607,25.04,143.98,143.92,121.5732126]
[1746444846902,6.9465,143.95,143.92,121.5732126]
[1746444847104,6.9465,143.95,143.93,6.9472]
[1746444847506,6.9461,143.96,143.93,6.9472]
[1746444847805,6.9461,143.96,143.94,6.9469]
[1746444848701,25.04,143.98,143.9,29.2404]
[1746444849007,37.16890249,143.98,143.9,6.9486]
[1746444849209,37.16890249,143.98,143.87,25.16]
[1746444849406,1.9655,143.97,143.87,25.16]
[1746444849606,6.9482,143.92,143.89,6.9491]
[1746444850308,6.9486,143.91,143.89,6.9491]
[1746444850608,25.16,143.93,143.89,6.9491]
[1746444850901,25.16,143.93,143.9,6.9486]
[1746444851303,32.1077,143.93,143.9,6.9486]
[1746444851805,25.16,143.93,143.89,6.9491]
[1746444852007,6.9484,143.92,143.89,6.9491]
[1746444852508,6.9484,143.91,143.89,6.9491]
[1746444853109,25.16,143.93,143.89,6.9491]
[1746444853404,25.16,143.93,143.88,6.9496]
[1746444853605,25.16,143.93,143.84,2.0613]
[1746444853806,25.16,143.93,143.87,6.9501]
[1746444854204,25.16,143.93,143.89,6.9493]
[1746444854403,25.16,143.93,143.84,2.0613]
[1746444854806,25.16,143.93,143.89,6.949]
[1746444855210,6.9487,143.91,143.84,2.0613]
[1746444855510,6.9487,143.91,143.88,6.9495]
[1746444858112,6.9489,143.9,143.88,6.9495]
[1746444858307,2.1517,143.94,143.87,6.9501]
[1746444858508,25.3306,143.93,143.87,6.9501]
[1746444858816,12.12890249,143.92,143.85,6.951]
[1746444859209,6.9504,143.87,143.85,6.951]
[1746444859406,32.1104,143.87,143.85,6.951]
[1746444860917,6.9508,143.86,143.84,6.9515]
[1746444861213,6.9508,143.86,143.8,6.1911]
[1746444861609,6.9513,143.85,143.83,6.9521]
[1746444861913,25.16,143.87,143.8,6.1911]
[1746444862309,6.951,143.86,143.8,6.1911]
[1746444862609,25.16,143.87,143.8,6.1911]
[1746444863517,6.9513,143.86,143.82,6.9527]
[1746444863721,25.16,143.87,143.82,6.9527]
[1746444864212,25.16,143.87,143.8,6.1911]
[1746444864413,25.16,143.87,143.8,4.0584]
[1746444864618,25.16,143.87,143.79,1.0]
[1746444864819,6.953,143.82,143.79,7.9539]
[1746444865118,25.18,143.83,143.79,7.9539]
[1746444865319,6.9537,143.8,143.79,1.0]
[1746444874629,6.9555,143.77,143.74,6.9564]
[1746444874832,25.18,143.78,143.72,6.1656]
[1746444875532,25.18,143.78,143.77,6.9552]
[1746444877926,25.18,143.81,143.72,6.1656]
[1746444878128,25.18,143.81,143.74,25.18]
[1746444878829,25.18,143.81,143.72,6.1656]
[1746444879233,6.9543,143.79,143.76,6.9554]
[1746444879433,25.18,143.81,143.72,6.1656]
[1746444880134,32.1334,143.81,143.72,6.1656]
[1746444880534,25.18,143.81,143.72,6.1656]
[1746444880727,25.18,143.81,143.77,6.9549]
[1746444881131,25.18,143.81,143.72,6.1656]
[1746444881332,6.9544,143.79,143.72,6.1656]
[1746444881829,6.9544,143.79,143.76,6.9552]
[1746444882035,25.18,143.81,143.72,6.1656]
[1746444883033,6.954,143.8,143.77,6.9548]
[1746444883230,6.954,143.8,143.72,6.1656]
[1746444884236,6.954,143.8,143.77,6.9549]
[1746444884535,25.18,143.81,143.72,6.1656]
[1746444884833,25.18,143.81,143.74,6.9564]
[1746444885024,6.9555,143.77,143.74,6.9564]
[1746444886133,6.9555,143.77,143.75,6.956]
[1746444886637,6.9549,143.78,143.75,6.956]
[1746444887235,25.18,143.81,143.75,6.956]
[1746444887436,25.18,143.81,143.72,6.1656]
[1746444888539,6.9548,143.78,143.75,6.9557]
[1746444888729,25.18,143.81,143.72,6.1656]
[1746444889244,6.9545,143.79,143.76,6.9554]
[1746444889437,25.18,143.81,143.76,6.9554]
[1746444889838,7.6227458,143.8,143.76,6.9554]
[1746444890240,7.6227458,143.8,143.75,6.9558]
[1746444890833,7.6227458,143.8,143.74,6.9563]
[1746444891039,6.9554,143.77,143.72,6.1656]
[1746444891241,7.6227458,143.8,143.72,6.1656]
[1746444891443,7.6227458,143.8,143.75,6.9559]
[1746444891744,6.955,143.78,143.75,6.9559]
[1746444891947,7.6227458,143.8,143.76,6.9553]
[1746444892149,25.18,143.81,143.72,6.1656]
[1746444892348,32.1335,143.81,143.72,6.1656]
[1746444892748,25.18,143.81,143.72,20.0805]
[1746444893143,25.18,143.81,143.79,6.9538]
[1746444893647,25.18,143.81,143.78,6.9544]
[1746444893841,32.1333,143.81,143.78,6.9544]
[1746444895448,6.9539,143.8,143.77,6.9549]
[1746444895845,25.18,143.81,143.75,25.18]
[1746444896047,25.18,143.81,143.76,6.9554]
[1746444896247,25.18,143.81,143.75,25.18]
[1746444896446,25.18,143.81,143.72,31.3456]
[1746444896650,7.6227458,143.8,143.72,31.3456]
[1746444897045,6.9564,143.75,143.72,38.3028]
[1746444897252,7.6227458,143.8,143.72,38.3028]
[1746444897548,7.6227458,143.8,143.72,31.3456]
[1746444898153,6.9559,143.76,143.72,38.3028]
[1746444898354,7.6227458,143.8,143.72,38.3028]
[1746444898552,7.6227458,143.8,143.72,31.3456]
[1746444899256,6.9561,143.76,143.73,6.9569]
[1746444899854,6.9561,143.76,143.73,7.9569]
[1746444900254,6.9561,143.76,143.74,6.9566]
[1746444900456,25.18,143.77,143.73,1.0]
[1746444900759,25.18,143.77,143.75,6.9561]
[1746444901060,25.18,143.77,143.73,1.0]
[1746444901254,25.18,143.8,143.73,1.0]
[1746444901453,25.18,143.8,143.73,26.18]
[1746444901854,6.9534,143.81,143.73,26.18]
[1746444902055,25.18,143.83,143.73,26.18]
[1746444902559,25.18,143.83,143.75,7.6227458]
[1746444902751,25.18,143.86,143.75,7.6227458]
[1746444902956,25.18,143.86,143.83,6.9519]
[1746444903158,25.18,143.86,143.8,25.18]
[1746444903355,7.43829,143.88,143.81,4.088]
[1746444903552,7.43829,143.88,143.84,6.9513]
[1746444903755,7.43829,143.88,143.81,4.088]
[1746444903955,6.9507,143.87,143.81,4.088]
[1746444904253,0.48809,143.88,143.81,2.023]
[1746444905057,6.9519,143.84,143.81,2.023]
[1746444905357,0.48809,143.88,143.81,2.023]
[1746444905558,6.9504,143.87,143.81,2.023]
[1746444906059,6.9504,143.87,143.83,6.9518]
[1746444906359,6.9504,143.87,143.81,2.023]
[1746444906556,32.61809,143.88,143.81,2.023]
[1746444906756,32.61809,143.88,143.81,27.203]
[1746444906959,32.61809,143.88,143.84,6.9514]
[1746444907555,32.61809,143.88,143.85,6.9512]
[1746444907859,25.18,143.88,143.81,27.203]
[1746444908750,32.1301,143.88,143.85,6.9512]
[1746444909261,25.18,143.88,143.86,6.9507]
[1746444909563,25.18,143.88,143.81,27.203]
[1746444909758,6.9492,143.9,143.86,6.9504]
[1746444910261,6.9503,143.88,143.84,6.9518]
[1746444910561,6.9503,143.88,143.81,27.203]
[1746444910863,6.9503,143.88,143.85,6.9509]
[1746444911156,6.9496,143.89,143.81,27.203]
[1746444911362,25.2,143.91,143.84,6.9518]
[1746444911562,25.2,143.91,143.81,27.203]
[1746444911763,6.9502,143.88,143.81,27.203]
[1746444911958,25.2,143.91,143.84,6.9516]
[1746444912261,25.2,143.91,143.81,27.203]
[1746444912662,25.2,143.91,143.83,6.952]
[1746444912862,6.9507,143.87,143.83,6.952]
[1746444913863,6.951,143.86,143.83,6.952]
[1746444915362,6.9518,143.84,143.81,27.203]
[1746444915562,12.17828178,143.9,143.81,27.203]
[1746444915965,6.9517,143.85,143.82,6.9525]
[1746444917761,6.9517,143.85,143.83,6.9522]
[1746444918165,6.951,143.86,143.83,6.9522]
[1746444918866,6.9513,143.85,143.82,6.9527]
[1746444919568,6.9513,143.85,143.83,6.9522]
[1746444920167,6.9513,143.85,143.82,6.9525]
[1746444920565,6.9513,143.85,143.81,27.203]
[1746444920864,6.9511,143.86,143.81,27.203]
[1746444921267,6.9511,143.86,143.84,6.9517]
[1746444921467,32.1505,143.87,143.84,6.9517]
[1746444924571,25.2,143.87,143.81,27.203]
[1746444925165,25.2,143.87,143.83,6.952]
[1746444925562,25.2,143.87,143.81,27.203]
[1746444925765,6.9511,143.86,143.84,6.9517]
[1746444926373,32.1505,143.87,143.85,6.9512]
[1746444927873,32.1505,143.87,143.84,6.9515]
[1746444929977,25.2,143.87,143.81,27.203]
[1746444930278,25.2,143.9,143.81,27.203]
[1746444930469,6.9506,143.87,143.84,6.9514]
[1746444930673,6.9506,143.87,143.81,27.203]
[1746444931777,6.9506,143.87,143.84,6.9515]
[1746444932278,6.9509,143.86,143.83,6.9521]
[1746444932877,6.9509,143.86,143.84,6.9517]
[1746444933477,6.9513,143.85,143.82,6.9523]
[1746444934376,6.9511,143.86,143.83,6.9522]
[1746444934579,25.2,143.9,143.83,6.9522]
[1746444934876,6.9516,143.85,143.83,6.9522]
[1746444935078,25.2,143.9,143.81,27.203]
[1746444935578,25.2,143.9,143.82,6.9524]
[1746444936278,6.9516,143.85,143.83,6.9521]
[1746444938980,6.9516,143.85,143.82,6.9524]
[1746444939282,6.9516,143.85,143.81,27.203]
[1746444940178,6.9516,143.85,143.82,6.9526]
[1746444942781,6.9512,143.86,143.83,6.9518]
[1746444943178,6.9512,143.86,143.81,27.203]
[1746444943684,6.9506,143.87,143.81,27.203]
[1746444943882,25.04,143.88,143.81,27.203]
[1746444944383,6.9505,143.87,143.84,6.9517]
[1746444945682,6.9508,143.86,143.84,6.9517]
[1746444946280,6.9506,143.87,143.84,6.9517]
[1746444946786,31.9899,143.88,143.85,6.951]
[1746444950486,6.9506,143.87,143.85,6.951]
[1746444950684,25.04,143.88,143.83,6.9519]
[1746444951080,25.04,143.88,143.81,27.203]
[1746444951280,25.04,143.88,143.82,6.9526]
[1746444952291,6.952,143.84,143.82,6.9526]
[1746444952989,6.9516,143.85,143.82,6.9526]
[1746444953291,25.04,143.88,143.82,6.9526]
[1746444954089,6.952,143.84,143.82,6.9526]
[1746444954794,6.952,143.84,143.81,27.203]
[1746444955894,6.952,143.84,143.82,6.9525]
[1746444957698,6.9516,143.85,143.83,6.9522]
[1746444958199,6.951,143.86,143.83,6.9522]
[1746444958599,7.6135011,143.92,143.84,6.9517]
[1746444958798,25.04,143.91,143.81,27.203]
[1746444959201,6.9506,143.87,143.84,6.9514]
[1746444959399,25.04,143.91,143.81,27.203]
[1746444959795,6.9499,143.88,143.81,27.203]
[1746444960296,6.9499,143.88,143.85,6.9511]
[1746444965508,6.9499,143.88,143.86,6.9508]
[1746444965805,6.9499,143.88,143.81,28.203]
[1746444966202,6.9499,143.88,143.85,6.951]
[1746444967499,6.9503,143.87,143.85,6.951]
[1746444967706,25.04,143.91,143.81,28.203]
[1746444967904,6.9511,143.86,143.81,28.203]
[1746444968205,6.9511,143.86,143.83,6.9519]
[1746444969005,25.04,143.91,143.81,28.203]
[1746444969305,7.6135011,143.89,143.81,28.203]
[1746444969706,6.952,143.84,143.82,6.9525]
[1746444970505,7.6135011,143.86,143.81,3.023]
[1746444971203,7.6135011,143.86,143.81,1.0]
[1746444971804,6.9527,143.82,143.81,1.0]
[1746444977112,6.9524,143.83,143.81,7.9532]
[1746444979517,24.86,143.87,143.81,1.0]
[1746444979712,24.86,143.87,143.82,2.1629]
[1746444980113,24.86,143.9,143.82,27.0229]
[1746444980519,6.9506,143.87,143.84,6.9515]
[1746444980713,6.9506,143.87,143.82,27.0229]
[1746444981015,24.86,143.9,143.82,27.0229]
[1746444981219,24.86,143.93,143.83,1.994]
[1746444981623,6.9492,143.9,143.86,6.9508]
[1746444982111,24.86,143.93,143.83,9.6075011]
[1746444982418,6.9486,143.91,143.88,6.9496]
[1746444983220,6.9486,143.91,143.86,24.86]
[1746444983722,6.9486,143.91,143.88,6.9496]
[1746444984216,24.86,143.93,143.86,31.8105]
[1746444984721,24.86,143.93,143.86,24.86]
[1746444984920,6.9501,143.88,143.86,24.86]